[Event "ESTCC-50 2025"]
[Site "Swidnica"]
[Date "2025.04.06"]
[Round "2.1"]
[White "Laszewicz, Pawel"]
[Black "Zych, Marek"]
[Result "1/2-1/2"]
[Annotator "ChessBase"]
[ECO "B33"]
[WhiteElo "2011"]
[BlackElo "1942"]
[PlyCount "91"]
[EventDate "2025.04.05"]
[EventType "team-tourn"]
[EventCountry "POL"]
[SourceTitle "playchess.com"]
[Source "ChessBase"]
[SourceQuality "1"]
[WhiteTeam "Poland"]
[BlackTeam "Poland"]
[WhiteTeamCountry "POL"]
[BlackTeamCountry "POL"]
[TimeControl "40/5400+30:1800+30"]

1. e4 {[%emt 0:00:02]} c5 {[%emt 0:00:11]} 2. Nf3 {[%emt 0:00:05]} Nc6 {[%emt 0:00:21]} 3. d4 {[%emt 0:00:10]} cxd4 {[%emt 0:00:24]} 4. Nxd4 {[%emt 0:00:04]} Nf6 {[%emt 0:00:11]} 5. Nc3 {[%emt 0:00:27]} e5 {[%emt 0:00:16]} 6. Ndb5 {[%emt 0:01:05]} d6 {[%emt 0:00:25]} 7. Bg5 {[%emt 0:01:28]} a6 {[%emt 0:01:14]} 8. Na3 {[%emt 0:00:18]} b5 {[%emt 0:00:15]} 9. Nd5 {[%emt 0:00:35]} Be7 {[%emt 0:00:24]} 10. Bxf6 {[%emt 0:00:36]} Bxf6 {[%emt 0:00:12]} 11. c4 {[%emt 0:01:13]} b4 {[%emt 0:00:36]} 12. Nc2 {[%emt 0:00:13]} O-O {[%emt 0:00:35]} 13. Qf3 {[%emt 0:15:16]} Bg5 {[%emt 0:07:41]} 14. Bd3 {[%emt 0:10:18]} a5 {[%emt 0:06:13]} 15. h4 {[%emt 0:01:24]} Bh6 {[%emt 0:01:07]} 16. g3 {[%emt 0:00:55]} Ne7 {[%emt 0:02:20]} 17. Nce3 {[%emt 0:21:35]} Bxe3 {[%emt 0:03:17]} 18. Nxe7+ {[%emt 0:02:19]} Qxe7 {[%emt 0:00:30]} 19. Qxe3 {[%emt 0:00:14]} Be6 {[%emt 0:01:18]} 20. O-O {[%emt 0:05:14]} Rfc8 {[%emt 0:04:02]} 21. Rac1 {[%emt 0:02:12]} Rc5 {[%emt 0:02:03]} 22. Rfd1 {[%emt 0:05:22]} Qc7 {[%emt 0:02:39]} 23. b3 {[%emt 0:01:24]} f6 {[%emt 0:03:01]} 24. Bc2 {[%emt 0:03:51]} Kf8 {[%emt 0:01:26]} 25. Rd2 {[%emt 0:01:26]} Ke7 {[%emt 0:01:53]} 26. Rcd1 {[%emt 0:00:50]} Ra6 {[%emt 0:00:58]} 27. Kh2 {[%emt 0:01:18]} a4 {[%emt 0:01:26]} 28. Rd3 {[%emt 0:02:49]} axb3 {[%emt 0:00:39]} 29. axb3 {[%emt 0:00:14]} Rca5 {[%emt 0:01:03]} 30. R3d2 {[%emt 0:03:27]} Qc5 {[%emt 0:01:50]} 31. Qe2 {[%emt 0:01:30]} g6 {[%emt 0:12:31]} 32. g4 {[%emt 0:04:08]} h6 {[%emt 0:01:27]} 33. f3 {[%emt 0:01:13]} g5 {[%emt 0:00:41]} 34. hxg5 {[%emt 0:00:56]} hxg5 {[%emt 0:00:12]} 35. Kg3 {[%emt 0:00:29]} Ra1 {[%emt 0:06:24]} 36. Bb1 {[%emt 0:04:37]} Ra8 {[%emt 0:06:08]} 37. Rh1 {[%emt 0:02:45]} Rf8 {[%emt 0:00:19]} 38. Rd3 {[%emt 0:02:43]} Raa8 {[%emt 0:05:04]} 39. Qf2 {[%emt 0:02:10]} Qxf2+ {[%emt 0:03:35]} 40. Kxf2 {[%emt 0:00:00]} Rh8 {[%emt 0:00:00]} 41. Rxh8 {[%emt 0:05:06]} Rxh8 {[%emt 0:00:47]} 42. Kg2 {[%emt 0:02:33]} Ra8 {[%emt 0:00:44]} 43. Rd2 {[%emt 0:03:02]} Ra3 {[%emt 0:00:37]} 44. Ba2 {[%emt 0:02:06]} Ra5 {[%emt 0:00:40]} 45. Kg3 {[%emt 0:03:31]} Ra3 {[%emt 0:17:49]} 46. Kg2 {[%emt 0:00:30]} 1/2-1/2

[Event "ESTCC-50 2025"]
[Site "Swidnica"]
[Date "2025.04.06"]
[Round "2.2"]
[White "Szmyd, Marek"]
[Black "Machlowski, Slawomir"]
[Result "0-1"]
[Annotator "NA"]
[ECO "C00"]
[WhiteElo "1900"]
[BlackElo "1963"]
[PlyCount "52"]
[EventDate "2025.04.05"]
[EventType "team-tourn"]
[EventCountry "POL"]
[SourceTitle "playchess.com"]
[Source "ChessBase"]
[SourceQuality "1"]
[WhiteTeam "Poland"]
[BlackTeam "Czech Republic"]
[WhiteTeamCountry "POL"]
[BlackTeamCountry "CZE"]
[TimeControl "40/5400+30:1800+30"]

1. e4 {[%emt 0:00:02]} e6 {[%emt 0:00:08]} 2. c4 {[%emt 0:00:18]} b6 {[%emt 0:02:25]} 3. d4 {[%emt 0:01:22]} Bb4+ {[%emt 0:00:36]} 4. Nc3 {[%emt 0:01:24]} Bb7 {[%emt 0:00:10]} 5. Bd3 {[%emt 0:07:40]} f5 {[%emt 0:00:46]} 6. Qc2 {[%emt 0:26:27]} Nf6 {[%emt 0:05:21]} 7. Bg5 {[%emt 0:18:45]} h6 {[%emt 0:01:44]} 8. Bxf6 {[%emt 0:01:35]} Qxf6 {[%emt 0:00:17]} 9. Nge2 {[%emt 0:00:58]} O-O {[%emt 0:10:45]} 10. exf5 {[%emt 0:11:00]} Nc6 {[%emt 0:09:14]} 11. O-O-O {[%emt 0:01:55]} Bxc3 {[%emt 0:05:01]} 12. Qxc3 {[%emt 0:01:24]} exf5 {[%emt 0:00:55]} 13. f4 {[%emt 0:04:21]} a5 {[%emt 0:03:27]} 14. d5 {[%emt 0:02:01]} Nb4 {[%emt 0:01:48]} 15. Qxf6 {[%emt 0:01:12]} Rxf6 {[%emt 0:00:03]} 16. Bb1 {[%emt 0:01:33]} c6 {[%emt 0:02:31]} 17. a3 {[%emt 0:03:56]} Na6 {[%emt 0:00:30]} 18. Nd4 {[%emt 0:00:14]} g6 {[%emt 0:00:47]} 19. Rhe1 {[%emt 0:01:48]} cxd5 {[%emt 0:03:37]} 20. cxd5 {[%emt 0:03:31]} Bxd5 {[%emt 0:05:49]} 21. Re7 {[%emt 0:01:19]} Rc8+ {[%emt 0:01:37]} 22. Kd2 {[%emt 0:00:18]} Nc5 {[%emt 0:09:05]} 23. b4 {[%emt 0:01:37]} axb4 {[%emt 0:00:14]} 24. axb4 {[%emt 0:00:02]} Nb3+ {[%emt 0:00:29]} 25. Nxb3 {[%emt 0:01:37]} Bxb3 {[%emt 0:00:09]} 26. Rc1 {[%emt 0:00:22]} Rd6+ {[%emt 0:00:25]} 0-1

[Event "ESTCC-50 2025"]
[Site "Swidnica"]
[Date "2025.04.06"]
[Round "2.3"]
[White "Kruczynski, Marek"]
[Black "Stec, Czeslaw"]
[Result "1/2-1/2"]
[Annotator "NA"]
[ECO "B12"]
[WhiteElo "1862"]
[BlackElo "1820"]
[PlyCount "78"]
[EventDate "2025.04.05"]
[EventType "team-tourn"]
[EventCountry "POL"]
[SourceTitle "playchess.com"]
[Source "ChessBase"]
[SourceQuality "1"]
[WhiteTeam "Poland"]
[BlackTeam "Poland"]
[WhiteTeamCountry "POL"]
[BlackTeamCountry "POL"]
[TimeControl "40/5400+30:1800+30"]

1. e4 {[%emt 0:00:07]} c6 {[%emt 0:00:07]} 2. d4 {[%emt 0:00:14]} d5 {[%emt 0:00:06]} 3. e5 {[%emt 0:00:10]} Bf5 {[%emt 0:00:22]} 4. h4 {[%emt 0:00:13]} h5 {[%emt 0:00:10]} 5. Bg5 {[%emt 0:00:28]} Qb6 {[%emt 0:01:19]} 6. Bd3 {[%emt 0:00:39]} Bxd3 {[%emt 0:00:56]} 7. Qxd3 {[%emt 0:00:28]} e6 {[%emt 0:00:47]} 8. Nd2 {[%emt 0:00:42]} Qa6 {[%emt 0:01:50]} 9. Qxa6 {[%emt 0:09:35]} Nxa6 {[%emt 0:00:11]} 10. a3 {[%emt 0:00:29]} c5 {[%emt 0:01:09]} 11. Ngf3 {[%emt 0:09:11]} Ne7 {[%emt 0:04:53]} 12. O-O {[%emt 0:08:19]} Nc6 {[%emt 0:00:50]} 13. c3 {[%emt 0:03:40]} cxd4 {[%emt 0:17:55]} 14. cxd4 {[%emt 0:00:26]} Be7 {[%emt 0:00:20]} 15. b4 {[%emt 0:03:42]} Nc7 {[%emt 0:02:06]} 16. Nb3 {[%emt 0:10:35]} f6 {[%emt 0:08:11]} 17. Bf4 {[%emt 0:01:08]} Kd7 {[%emt 0:03:40]} 18. Rfc1 {[%emt 0:04:54]} Rhc8 {[%emt 0:00:10]} 19. g3 {[%emt 0:09:33]} b6 {[%emt 0:04:20]} 20. Kg2 {[%emt 0:12:05]} a5 {[%emt 0:01:33]} 21. exf6 {[%emt 0:02:17]} gxf6 {[%emt 0:00:14]} 22. Bxc7 {[%emt 0:00:24]} Rxc7 {[%emt 0:00:10]} 23. b5 {[%emt 0:00:27]} Nd8 {[%emt 0:00:13]} 24. Rxc7+ {[%emt 0:01:12]} Kxc7 {[%emt 0:00:13]} 25. a4 {[%emt 0:01:57]} Kd7 {[%emt 0:00:46]} 26. Rc1 {[%emt 0:00:39]} Rc8 {[%emt 0:02:56]} 27. Rxc8 {[%emt 0:01:36]} Kxc8 {[%emt 0:00:08]} 28. Nc1 {[%emt 0:00:03]} Nf7 {[%emt 0:00:21]} 29. Nd3 {[%emt 0:00:15]} Bd6 {[%emt 0:00:47]} 30. Nd2 {[%emt 0:05:31]} e5 {[%emt 0:00:55]} 31. Nb3 {[%emt 0:02:07]} e4 {[%emt 0:01:45]} 32. Ne1 {[%emt 0:03:50]} Kd7 {[%emt 0:00:24]} 33. Nc2 {[%emt 0:00:56]} Ke6 {[%emt 0:00:16]} 34. Ne3 {[%emt 0:02:06]} f5 {[%emt 0:00:43]} 35. Nc1 {[%emt 0:03:56]} Nh6 {[%emt 0:02:54]} 36. Ne2 {[%emt 0:00:43]} Ng8 {[%emt 0:00:10]} 37. Kf1 {[%emt 0:02:12]} Ne7 {[%emt 0:02:34]} 38. Ng2 {[%emt 0:01:15]} Ng6 {[%emt 0:00:37]} 39. Ke1 {[%emt 0:00:30]} Bc7 {[%emt 0:05:59]} 1/2-1/2

[Event "ESTCC-50 2025"]
[Site "Swidnica"]
[Date "2025.04.06"]
[Round "2.4"]
[White "Zaremba, Artur"]
[Black "Szydelko, Kazimierz"]
[Result "1-0"]
[Annotator "ChessBase"]
[ECO "B40"]
[WhiteElo "2133"]
[BlackElo "1798"]
[PlyCount "131"]
[EventDate "2025.04.05"]
[EventType "team-tourn"]
[EventCountry "POL"]
[SourceTitle "playchess.com"]
[Source "ChessBase"]
[SourceQuality "1"]
[WhiteTeam "Poland"]
[BlackTeam "Poland"]
[WhiteTeamCountry "POL"]
[BlackTeamCountry "POL"]
[TimeControl "40/5400+30:1800+30"]

1. e4 {[%emt 0:00:12]} c5 {[%emt 0:00:18]} 2. Nf3 {[%emt 0:00:19]} e6 {[%emt 0:00:52]} 3. d4 {[%emt 0:00:20]} cxd4 {[%emt 0:00:08]} 4. Nxd4 {[%emt 0:00:03]} Nf6 {[%emt 0:00:24]} 5. Bd3 {[%emt 0:01:51]} a6 {[%emt 0:01:24]} 6. O-O {[%emt 0:00:17]} Qc7 {[%emt 0:01:13]} 7. c4 {[%emt 0:02:05]} Be7 {[%emt 0:02:38]} 8. Nc3 {[%emt 0:00:11]} d6 {[%emt 0:00:10]} 9. Be3 {[%emt 0:00:53]} O-O {[%emt 0:01:35]} 10. Rc1 {[%emt 0:02:00]} Nbd7 {[%emt 0:01:16]} 11. f4 {[%emt 0:01:08]} b6 {[%emt 0:01:18]} 12. Qe2 {[%emt 0:01:33]} Bb7 {[%emt 0:00:25]} 13. b4 {[%emt 0:06:39]} Rac8 {[%emt 0:07:23]} 14. g4 {[%emt 0:02:41]} g6 {[%emt 0:13:01]} 15. g5 {[%emt 0:02:48]} Nh5 {[%emt 0:03:49]} 16. Qg4 {[%emt 0:09:16]} Ng7 {[%emt 0:04:21]} 17. Nf3 {[%emt 0:01:39]} f5 {[%emt 0:09:44]} 18. gxf6 {[%emt 0:00:44]} Nxf6 {[%emt 0:02:07]} 19. Qh3 {[%emt 0:00:17]} Nfh5 {[%emt 0:02:38]} 20. Nd4 {[%emt 0:02:00]} Rf6 {[%emt 0:06:23]} 21. a3 {[%emt 0:00:45]} Rcf8 {[%emt 0:00:23]} 22. Nde2 {[%emt 0:02:32]} e5 {[%emt 0:07:03]} 23. Nd5 {[%emt 0:00:48]} Bxd5 {[%emt 0:00:32]} 24. cxd5 {[%emt 0:00:19]} Qb7 {[%emt 0:04:40]} 25. fxe5 {[%emt 0:01:01]} Rxf1+ {[%emt 0:02:21]} 26. Rxf1 {[%emt 0:00:10]} dxe5 {[%emt 0:00:31]} 27. Rxf8+ {[%emt 0:00:46]} Bxf8 {[%emt 0:00:33]} 28. Qf1 {[%emt 0:00:25]} a5 {[%emt 0:01:23]} 29. Bd2 {[%emt 0:03:14]} Bd6 {[%emt 0:08:57]} 30. Bb5 {[%emt 0:04:28]} axb4 {[%emt 0:00:59]} 31. axb4 {[%emt 0:01:36]} Qe7 {[%emt 0:00:57]} 32. Qe1 {[%emt 0:00:17]} Nf4 {[%emt 0:02:41]} 33. Nxf4 {[%emt 0:08:11]} exf4 {[%emt 0:00:03]} 34. Bc3 {[%emt 0:05:44]} Qg5+ {[%emt 0:08:14]} 35. Kh1 {[%emt 0:01:03]} f3 {[%emt 0:05:44]} 36. Bf1 {[%emt 0:00:27]} Be5 {[%emt 0:01:19]} 37. Bxe5 {[%emt 0:00:36]} Qxe5 {[%emt 0:00:01]} 38. Qe3 {[%emt 0:00:25]} f2 {[%emt 0:01:11]} 39. Kg2 {[%emt 0:03:10]} Nf5 {[%emt 0:00:24]} 40. Qd3 {[%emt 0:00:00]} Nh4+ {[%emt 0:00:00]} 41. Kxf2 {[%emt 0:02:12]} Qf4+ {[%emt 0:08:45]} 42. Ke2 {[%emt 0:01:05]} Qxh2+ {[%emt 0:01:27]} 43. Kd1 {[%emt 0:00:32]} Qd6 {[%emt 0:01:29]} 44. e5 {[%emt 0:00:56]} Qxe5 {[%emt 0:02:03]} 45. d6 {[%emt 0:00:06]} Qa1+ {[%emt 0:01:50]} 46. Kc2 {[%emt 0:00:18]} Qa2+ {[%emt 0:01:11]} 47. Kc3 {[%emt 0:00:08]} Qa3+ {[%emt 0:03:39]} 48. Kc4 {[%emt 0:01:30]} Qxd3+ {[%emt 0:05:02]} 49. Bxd3 {[%emt 0:00:12]} Kf7 {[%emt 0:00:08]} 50. Kd5 {[%emt 0:02:20]} Ke8 {[%emt 0:08:51]} 51. Kc6 {[%emt 0:00:09]} Kd8 {[%emt 0:00:35]} 52. Kxb6 {[%emt 0:00:08]} Nf3 {[%emt 0:01:18]} 53. Kc5 {[%emt 0:02:55]} Ne5 {[%emt 0:00:10]} 54. Be4 {[%emt 0:00:17]} Nd7+ {[%emt 0:00:42]} 55. Kc6 {[%emt 0:05:55]} Ne5+ {[%emt 0:00:29]} 56. Kd5 {[%emt 0:00:08]} Nd7 {[%emt 0:00:33]} 57. Bc2 {[%emt 0:02:10]} Nb8 {[%emt 0:01:03]} 58. b5 {[%emt 0:00:23]} Kc8 {[%emt 0:00:35]} 59. Bd1 {[%emt 0:01:17]} h5 {[%emt 0:00:18]} 60. Bc2 {[%emt 0:00:09]} g5 {[%emt 0:00:36]} 61. Bf5+ {[%emt 0:00:33]} Kb7 {[%emt 0:00:32]} 62. Kc5 {[%emt 0:00:54]} g4 {[%emt 0:00:23]} 63. b6 {[%emt 0:00:19]} Na6+ {[%emt 0:00:37]} 64. Kb5 {[%emt 0:00:11]} Nb4 {[%emt 0:00:37]} 65. Be4+ {[%emt 0:00:20]} Kc8 {[%emt 0:00:30]} 66. b7+ {[%emt 0:00:41]} 1-0

[Event "ESTCC-50 2025"]
[Site "Swidnica"]
[Date "2025.04.06"]
[Round "2.5"]
[White "Adams, Michael"]
[Black "Lalic, Susan K"]
[Result "1-0"]
[Annotator "TA"]
[ECO "C17"]
[WhiteElo "2661"]
[BlackElo "2227"]
[PlyCount "81"]
[EventDate "2025.04.05"]
[EventType "team-tourn"]
[EventCountry "POL"]
[SourceTitle "playchess.com"]
[Source "ChessBase"]
[SourceQuality "1"]
[WhiteTeam "England"]
[BlackTeam "England"]
[WhiteTeamCountry "ENG"]
[BlackTeamCountry "ENG"]
[TimeControl "40/5400+30:1800+30"]

{[%evp 16,81,29,20,36,26,26,29,35,37,34,40,42,51,54,45,43,44,47,50,50,39,57,47,51,46,51,46,65,51,43,43,52,43,50,50,71,50,50,50,84,90,93,50,66,71,130,130,130,130,130,130,130,79,130,130,130,130,130,130,274,267,304,292,292,316,493,466]} 1. e4 {[%emt 0:00:04]} e6 {[%emt 0:00:09]} 2. d4 {[%emt 0:00:06]} d5 {[%emt 0:00:08]} 3. Nc3 {[%emt 0:00:09]} Bb4 {[%emt 0:00:19]} 4. e5 {[%emt 0:00:11]} c5 {[%emt 0:00:29]} 5. a3 {[%emt 0:00:10]} Ba5 {[%emt 0:00:57]} 6. b4 {[%emt 0:01:31]} cxd4 {[%emt 0:00:18]} 7. Nb5 {[%emt 0:00:11]} Bc7 {[%emt 0:00:13]} 8. f4 {[%emt 0:01:30]} Ne7 {[%emt 0:09:43]} 9. Nf3 {[%emt 0:01:11]} Nbc6 {[%emt 0:04:18] C18: French: 3 Nc3 Bb4: Main line: 7 h4 and 7 Qg4.} 10. Nxc7+ {[%emt 0:12:22]} Qxc7 {[%emt 0:00:04]} 11. Bd3 {[%emt 0:00:14]} a6 {[%emt 0:08:16] White has an edge.} 12. O-O {[%emt 0:02:18] White sacrificed a pawn} Bd7 {[%emt 0:02:48]} 13. Bb2 {[%emt 0:03:07]} h6 {[%emt 0:09:16]} 14. Qd2 {[%emt 0:02:15]} (14. Nxd4 Qb6 15. c3 Nxd4 16. cxd4 Bb5 $15) 14... Nf5 {[%emt 0:13:35]} 15. Bxf5 {[%emt 0:09:39]} exf5 {[%emt 0:00:05]} 16. Bxd4 {[%emt 0:01:09]} Nxd4 {[%emt 0:02:49]} 17. Nxd4 {[%emt 0:01:28]} O-O {[%emt 0:02:22] Black is weak on the dark squares} 18. Rf3 {[%emt 0:14:51]} Rfc8 {[%emt 0:03:00]} 19. h3 $146 {[%emt 0:00:39]} (19. Rb1 Ba4 20. Rc1 Bd7 {½-½ Mokry,K (2490)-Ambroz,J (2460) Prague op 1986}) 19... a5 {[%emt 0:02:21]} 20. Rb1 {[%emt 0:01:19]} axb4 {[%emt 0:05:57]} 21. Rxb4 {[%emt 0:02:31]} Ra6 {[%emt 0:02:38]} 22. Rfb3 {[%emt 0:05:21]} b5 {[%emt 0:09:01]} 23. Kh2 {[%emt 0:05:30][%cal Ob3g3]} Rg6 {[%emt 0:11:14][%csl Ob5] White attacks a weakness} 24. Qd3 {[%emt 0:10:14]} Qc5 {[%emt 0:01:46]} 25. Qf3 {[%emt 0:04:40]} (25. Nxf5 Bxf5 26. Qxf5 Qxc2 27. Qxc2 Rxc2 $11) 25... Ra6 {[%emt 0:01:54][%cal Oa6a3]} 26. c3 {[%emt 0:06:10][%cal Rd4b5]} Ra4 {[%emt 0:01:51]} 27. Qd3 {[%emt 0:02:00]} (27. Nxb5 $2 Rxb4 28. axb4 Qxb5 $19) 27... Rxb4 {[%emt 0:01:26]} 28. axb4 {[%emt 0:00:35]} (28. Rxb4 $6 Qxc3 29. Qxc3 Rxc3 $11) 28... Qa7 {[%emt 0:02:47]} 29. Qb1 {[%emt 0:05:28]} (29. Nxf5 Bxf5 30. Qxf5 Rc4 $11) (29. Nxb5 Qa6 30. e6 fxe6 $19 (30... Bxb5 $2 31. exf7+ Kf8 32. Qxf5 $19)) 29... Rc4 {[%emt 0:02:17]} 30. Qb2 {[%emt 0:00:45]} (30. Nxf5 Qf2 31. Ne7+ Kh8 $19) 30... Qc7 {[%emt 0:01:06]} (30... Qa4) 31. Qa1 {[%emt 0:01:07]} Kh7 {[%emt 0:00:16]} 32. Ra3 {[%emt 0:00:10]} Qd8 {[%emt 0:00:31]} 33. Ra7 {[%emt 0:02:06]} Be6 {[%emt 0:00:54]} 34. Qe1 {[%emt 0:01:28] White is much more active.} (34. Nxb5 Rxf4 (34... Qh4 35. g3 $14) 35. Qc1 Qh4 $19) ({White should play} 34. Ra8 Qh4 35. g3 (35. Nxb5 $2 Qxf4+ 36. Kh1 Re4 $19)) 34... Qb6 {[%emt 0:00:52]} ({Better is} 34... Qc8) 35. Ra2 $16 {[%emt 0:01:16]} Qb8 {[%emt 0:00:55]} 36. Ra3 {[%emt 0:01:24]} Qd8 {[%emt 0:00:27]} 37. Qg3 {[%emt 0:01:02]} Qd7 {[%emt 0:00:51] Black cannot hold the game after this.} (37... Qb6 $16 38. Qf3 Qb7) 38. Ra5 $18 {[%emt 0:00:18]} Rc8 {[%emt 0:00:43]} 39. Nxb5 {[%emt 0:00:56][%cal Bd4b5,Bb5d4,Bd4f5][%mdl 32]} ({Don't take} 39. Rxb5 Rc4) 39... d4 {[%emt 0:00:13]} 40. Nxd4 {[%emt 0:00:00]} Bd5 {[%emt 0:00:00] [#]} (40... Bc4 $142 41. Qf3 Rc7) 41. Nxf5 $1 {[%emt 0:02:47][%mdl 512] Weighted Error Value: White=0.06 (flawless) /Black=0.22 (precise)   Mistake:       	White=1     	Black=4      Inaccurate:     	White=1     	Black=1      OK:         	White=17    	Black=9      Best:        	White=1     	---} 1-0

[Event "ESTCC-50 2025"]
[Site "Swidnica"]
[Date "2025.04.06"]
[Round "2.6"]
[White "Lauterbach, Ingrid"]
[Black "Emms, John M"]
[Result "0-1"]
[Annotator "ChessBase"]
[ECO "D45"]
[WhiteElo "1998"]
[BlackElo "2411"]
[PlyCount "54"]
[EventDate "2025.04.05"]
[EventType "team-tourn"]
[EventCountry "POL"]
[SourceTitle "playchess.com"]
[Source "ChessBase"]
[SourceQuality "1"]
[WhiteTeam "England"]
[BlackTeam "England"]
[WhiteTeamCountry "ENG"]
[BlackTeamCountry "ENG"]
[TimeControl "40/5400+30:1800+30"]

1. d4 {[%emt 0:00:02]} Nf6 {[%emt 0:03:10]} 2. c4 {[%emt 0:00:33]} e6 {[%emt 0:01:15]} 3. Nf3 {[%emt 0:00:46]} d5 {[%emt 0:01:26]} 4. Nc3 {[%emt 0:01:30]} c6 {[%emt 0:03:02]} 5. e3 {[%emt 0:02:33]} Nbd7 {[%emt 0:00:48]} 6. cxd5 {[%emt 0:06:15]} exd5 {[%emt 0:00:59]} 7. Be2 {[%emt 0:00:57]} Bd6 {[%emt 0:01:40]} 8. Qc2 {[%emt 0:08:37]} O-O {[%emt 0:02:51]} 9. b3 {[%emt 0:04:30]} Re8 {[%emt 0:04:23]} 10. Bb2 {[%emt 0:02:31]} Nf8 {[%emt 0:02:26]} 11. h3 {[%emt 0:08:12]} Ng6 {[%emt 0:24:03]} 12. O-O-O {[%emt 0:04:25]} b5 {[%emt 0:07:24]} 13. Bd3 {[%emt 0:01:51]} a5 {[%emt 0:01:23]} 14. Bf5 {[%emt 0:05:38]} Bxf5 {[%emt 0:06:24]} 15. Qxf5 {[%emt 0:00:07]} a4 {[%emt 0:01:26]} 16. h4 {[%emt 0:12:37]} axb3 {[%emt 0:18:16]} 17. axb3 {[%emt 0:00:21]} Ba3 {[%emt 0:00:32]} 18. Ne5 {[%emt 0:10:32]} Nxe5 {[%emt 0:04:39]} 19. dxe5 {[%emt 0:00:13]} Nd7 {[%emt 0:01:02]} 20. f4 {[%emt 0:02:00]} Nc5 {[%emt 0:01:50]} 21. Qc2 {[%emt 0:01:00]} Qb6 {[%emt 0:04:09]} 22. Rhe1 {[%emt 0:06:29]} Ra7 {[%emt 0:01:24]} 23. Nb1 {[%emt 0:09:10]} Bxb2+ {[%emt 0:00:37]} 24. Qxb2 {[%emt 0:00:33]} Rea8 {[%emt 0:00:59]} 25. b4 {[%emt 0:05:07]} Ne4 {[%emt 0:00:33]} 26. Qd4 {[%emt 0:05:37]} Qxd4 {[%emt 0:01:30]} 27. exd4 {[%emt 0:01:08]} Ra2 {[%emt 0:01:44]} 0-1

[Event "ESTCC-50 2025"]
[Site "Swidnica"]
[Date "2025.04.06"]
[Round "2.7"]
[White "Flear, Glenn C"]
[Black "Jackson, Sheila"]
[Result "1-0"]
[Annotator "ChessBase"]
[ECO "E11"]
[WhiteElo "2366"]
[BlackElo "2031"]
[PlyCount "57"]
[EventDate "2025.04.05"]
[EventType "team-tourn"]
[EventCountry "POL"]
[SourceTitle "playchess.com"]
[Source "ChessBase"]
[SourceQuality "1"]
[WhiteTeam "England"]
[BlackTeam "England"]
[WhiteTeamCountry "ENG"]
[BlackTeamCountry "ENG"]
[TimeControl "40/5400+30:1800+30"]

1. d4 {[%emt 0:00:15]} Nf6 {[%emt 0:00:05]} 2. c4 {[%emt 0:00:08]} e6 {[%emt 0:00:05]} 3. Nf3 {[%emt 0:00:20]} Bb4+ {[%emt 0:01:08]} 4. Nbd2 {[%emt 0:00:55]} b6 {[%emt 0:07:42]} 5. a3 {[%emt 0:04:25]} Bxd2+ {[%emt 0:00:47]} 6. Qxd2 {[%emt 0:01:39]} Bb7 {[%emt 0:05:31]} 7. e3 {[%emt 0:00:20]} a5 {[%emt 0:01:14]} 8. b3 {[%emt 0:01:18]} d6 {[%emt 0:02:33]} 9. Bb2 {[%emt 0:00:54]} Nbd7 {[%emt 0:03:06]} 10. Bd3 {[%emt 0:08:30]} O-O {[%emt 0:03:22]} 11. Qc2 {[%emt 0:04:00]} Re8 {[%emt 0:02:31]} 12. O-O-O {[%emt 0:15:06]} Qe7 {[%emt 0:02:28]} 13. Rhg1 {[%emt 0:07:06]} e5 {[%emt 0:04:52]} 14. Nd2 {[%emt 0:10:53]} e4 {[%emt 0:10:49]} 15. Be2 {[%emt 0:00:30]} Nf8 {[%emt 0:03:11]} 16. g4 {[%emt 0:04:18]} Ng6 {[%emt 0:02:35]} 17. Kb1 {[%emt 0:03:33]} c5 {[%emt 0:06:59]} 18. d5 {[%emt 0:02:33]} Nd7 {[%emt 0:12:11]} 19. g5 {[%emt 0:01:06]} f5 {[%emt 0:06:38]} 20. gxf6 {[%emt 0:01:17]} Nxf6 {[%emt 0:00:15]} 21. Rg5 {[%emt 0:12:27]} Bc8 {[%emt 0:04:41]} 22. Rdg1 {[%emt 0:00:36]} Ra7 23. Ka2 {[%emt 0:02:51]} Qf8 {[%emt 0:07:51]} 24. h4 {[%emt 0:08:58]} Nxh4 {[%emt 0:01:36]} 25. Bxf6 {[%emt 0:02:02]} Qxf6 {[%emt 0:00:06]} 26. Nxe4 {[%emt 0:00:10]} Qf8 {[%emt 0:00:22]} 27. Rh5 {[%emt 0:00:48]} Nf3 {[%emt 0:08:51]} 28. Nf6+ {[%emt 0:03:39]} Qxf6 {[%emt 0:00:22]} 29. Qxh7+ {[%emt 0:00:17]} 1-0

[Event "ESTCC-50 2025"]
[Site "Swidnica"]
[Date "2025.04.06"]
[Round "2.8"]
[White "Fink-Nunn, Petra"]
[Black "Dishman, Stephen"]
[Result "0-1"]
[Annotator "ChessBase"]
[ECO "B12"]
[WhiteElo "1997"]
[BlackElo "2279"]
[PlyCount "60"]
[EventDate "2025.04.05"]
[EventType "team-tourn"]
[EventCountry "POL"]
[SourceTitle "playchess.com"]
[Source "ChessBase"]
[SourceQuality "1"]
[WhiteTeam "England"]
[BlackTeam "England"]
[WhiteTeamCountry "ENG"]
[BlackTeamCountry "ENG"]
[TimeControl "40/5400+30:1800+30"]

1. e4 {[%emt 0:00:04]} c6 {[%emt 0:00:08]} 2. d4 {[%emt 0:00:07]} d5 {[%emt 0:00:06]} 3. e5 {[%emt 0:00:14]} Bf5 {[%emt 0:00:18]} 4. Nf3 {[%emt 0:00:13]} e6 {[%emt 0:00:15]} 5. Be2 {[%emt 0:00:17]} Nd7 {[%emt 0:00:09]} 6. O-O {[%emt 0:00:21]} a5 {[%emt 0:00:04]} 7. a4 {[%emt 0:02:22]} f6 {[%emt 0:00:27]} 8. Nbd2 {[%emt 0:29:52]} Nh6 {[%emt 0:00:30]} 9. Nb3 {[%emt 0:01:09]} Nf7 {[%emt 0:00:20]} 10. exf6 {[%emt 0:05:55]} Qxf6 {[%emt 0:00:43]} 11. c4 {[%emt 0:07:51]} Bd6 {[%emt 0:02:53]} 12. c5 {[%emt 0:10:32]} Bc7 {[%emt 0:00:52]} 13. Bd2 {[%emt 0:00:15]} O-O {[%emt 0:02:21]} 14. Qc1 {[%emt 0:04:46]} e5 {[%emt 0:08:20]} 15. dxe5 {[%emt 0:03:08]} Nfxe5 {[%emt 0:01:11]} 16. Nbd4 {[%emt 0:10:54]} Bd3 {[%emt 0:21:51]} 17. Bxd3 {[%emt 0:05:11]} Nxd3 {[%emt 0:00:10]} 18. Qc3 {[%emt 0:01:44]} N3xc5 {[%emt 0:05:22]} 19. Bg5 {[%emt 0:00:14]} Qf7 {[%emt 0:01:22]} 20. Bh4 {[%emt 0:03:10]} Ne4 {[%emt 0:00:24]} 21. Qb3 {[%emt 0:01:13]} Ndc5 {[%emt 0:05:09]} 22. Qc2 {[%emt 0:00:03]} Rae8 {[%emt 0:02:18]} 23. Bg3 {[%emt 0:01:58]} Bxg3 {[%emt 0:01:40]} 24. hxg3 {[%emt 0:00:41]} Qh5 {[%emt 0:03:42]} 25. Nh2 {[%emt 0:05:45]} Ne6 {[%emt 0:02:24]} 26. Nxe6 {[%emt 0:01:04]} Rxe6 {[%emt 0:00:04]} 27. g4 {[%emt 0:00:16]} Qh4 {[%emt 0:01:08]} 28. Ra3 {[%emt 0:00:05]} Ref6 {[%emt 0:07:23]} 29. Rh3 {[%emt 0:00:23]} Rxf2 {[%emt 0:00:39]} 30. Qxf2 {[%emt 0:04:54]} Qxf2+ {[%emt 0:00:17]} 0-1